Cogmind - Beta 17 @@@ ROGUE MODE // 2026.08.09 @ 22:07:00 Player: Marc Result: Destroyed by as-22343 with Assembled Rifle Performance ------------- Evolutions (0) 0 Regions Visited (2) 400 Robots Destroyed (2) 10 Value Destroyed (81) 81 Prototype IDs (0) 0 Alien Tech Used (0) 0 Bonus (0) 0 TOTAL SCORE: 491 Bonus ------- None Cogmind --------- Core Integrity 0/250 Matter 285/300 Energy 68/100 System Corruption 6% Temperature Cool (0) Movement Core (50) Location -10/Mines Parts ------- > --- POWER (1) -------- (None) > --- PROPULSION (2) --- (None) > --- UTILITY (2) ------ Signal Interpreter > --- WEAPON (2) ------- Light Assault Rifle > --- INVENTORY (5) ---- Heat Sink Datajack Peak State ------------ > --- POWER ------------ Light Ion Engine > --- PROPULSION ------- Light Treads Light Treads > --- UTILITY ---------- (None) > --- WEAPON ----------- Light Assault Rifle > --- INVENTORY -------- (None) [Rating: 4] Favorites ----------- Power Light Ion Engine Engine Light Ion Engine Propulsion Light Treads Treads Light Treads Utility Sensor Array Device Sensor Array Processor Signal Interpreter Weapon Light Assault Rifle Ballistic Gun Light Assault Rifle Build | -11 -10 -10 ------- Run | Yrd Mat Min Slots Evolved . | . . . Power . | . . . Propulsion . | . . . Utility . | . . . Weapon . | . . . Parts Attached 6 | 4 1 1 Power 1 | 1 . . Engine 1 | 1 . . Core . | . . . Reactor . | . . . Propulsion 2 | 2 . . Treads 2 | 2 . . Leg . | . . . Wheel . | . . . Hover . | . . . Flight . | . . . Utility 2 | . 1 1 Device 1 | . 1 . Storage . | . . . Processor 1 | . . 1 Hackware . | . . . Protection . | . . . Artifact . | . . . Weapon 1 | 1 . . Energy Gun . | . . . Energy Cannon . | . . . Ballistic Gun 1 | 1 . . Ballistic Cannon . | . . . Launcher . | . . . Special Weapon . | . . . Impact Weapon . | . . . Slashing Weapon . | . . . Piercing Weapon . | . . . Special Melee Weapon . | . . . Unidentified Prototypes . | . . . Parts Lost 4 | . 1 3 Power 1 | . 1 . Propulsion 2 | . . 2 Utility 1 | . . 1 Weapon . | . . . Highest Loss Streak 3 | . 1 3 To Critical Strikes . | . . . Average Backups . | . . . Power . | . . . Propulsion . | . . . Utility . | . . . Weapon . | . . . Tool/Special . | . . . Unused Backups 1 | 1 . . Power . | . . . Propulsion 1 | 1 . . Utility . | . . . Weapon . | . . . Tool/Special . | . . . Average Slot Usage (%) 48 | . 52 42 Engine 3 | . 6 . Treads 24 | . 28 19 Device 4 | . 3 5 Processor 1 | . . 2 Ballistic Gun 14 | . 14 14 Peak Build Rating 4 | 4 4 4 Average Rating 3 | 3 3 2 On Entrance 2 | . 4 4 Avg Prop Armor Cover (%) . | . . . Naked Turns . | . . . Heaviest Build 4 | 4 4 2 Greatest Support 40 | 40 40 40 Greatest Overweight (x) 1 | 1 . . Average Overweight (x) . | . . . Largest Inventory Capacity 5 | 5 5 5 Average Capacity 5 | 5 5 5 Most Carried 2 | 2 1 2 Average Carried . | . . . Final Capacity 5 | 5 5 5 Final Carried 2 | . . 2 Class Distribution -------------------- 100% | Mutant Dominant Class ---------------- Mutant | -10/Materials Mutant | -10/Mines Resources | -11 -10 -10 ----------- Run | Yrd Mat Min Matter Collected 258 | 167 88 3 Remotely . | . . . Salvage Created 116 | . 97 19 Parts 5 | . 5 . Haulers Intercepted . | . . . Recyclers Shooed 1 | . 1 . Parts Field Recycled . | . . . Retrieved Matter . | . . . Parts Self-Destructed . | . . . Prevented . | . . . Parts Restored . | . . . Kills | -11 -10 -10 ------- Run | Yrd Mat Min Combat Hostiles Destroyed 3 | . 2 1 Guns 3 | . 2 1 Classes Destroyed 2 | . 1 1 Grunt 2 | . 2 . Assembled 1 | . . 1 Best Kill Streak 2 | . 2 1 Combat Bots Only 2 | . 2 1 Max Kills in Single Turn 1 | . 1 1 Gunslinging . | . . . Exploded . | . . . Melee . | . . . Uniques/NPCs Destroyed . | . . . Combat | -11 -10 -10 -------- Run | Yrd Mat Min Hostile Shots Fired 64 | . 32 32 Missed 21 | . 12 9 Hits 43 | . 20 23 Melee 14 | . . 14 Projectile 29 | . 20 9 Damage Taken 683 | . 261 422 Core 259 | . 102 157 Absorbed by Shields . | . . . Core Remaining (%) 100 | 100 . . Volleys Fired 33 | . 21 12 Largest 1 | . 1 1 Hottest 20 | . 20 20 Shots Fired 33 | . 21 12 Gun 33 | . 21 12 Cannon . | . . . Launcher . | . . . Special . | . . . Kinetic 33 | . 21 12 Thermal . | . . . Explosive . | . . . Electromagnetic . | . . . Robot Hit Streak 10 | . 8 10 Robot Miss Streak 2 | . 2 2 Penetration Max . | . . . Secondary Targets . | . . . Shots Hit Robots 25 | . 17 8 Core Hits 12 | . 6 6 Critical Kills . | . . . Critical Parts Destroyed 1 | . 1 . Critical Strikes 1 | . 1 . Destroy 1 | . 1 . Melee Attacks . | . . . Impact . | . . . Slashing . | . . . Piercing . | . . . Sneak Attacks . | . . . Combat Hostiles . | . . . Follow-up Attacks . | . . . Damage Inflicted 214 | . 137 77 Guns 214 | . 137 77 Cannons . | . . . Explosions . | . . . Melee . | . . . Ramming . | . . . Kinetic 214 | . 137 77 Thermal . | . . . Explosive . | . . . Electromagnetic . | . . . Impact . | . . . Slashing . | . . . Piercing . | . . . Highest Corruption 6 | . . 6 Average Corruption 3 | . . 3 Corruption Purged . | . . . Corruption Blocked . | . . . Effects 2 | . . 2 Heat Flow Errors 1 | . . 1 Energy Discharges 1 | . . 1 Overload Shots . | . . . Overflow Damage . | . . . Projectiles . | . . . Explosions . | . . . Melee . | . . . Knockbacks . | . . . Impact . | . . . Kinetic . | . . . Secondary . | . . . Self-Inflicted Damage . | . . . Shots . | . . . Rammed . | . . . Targets Rammed . | . . . Kicked . | . . . Crushed . | . . . Highest Temperature 176 | . 15 176 Average Temperature 42 | . 6 88 Received Heat Transfer 147 | . 147 . Siege Activations . | . . . Martial Activations . | . . . Shielding Activations . | . . . Robots Disrupted . | . . . Combat Hostiles . | . . . Robots Corrupted . | . . . Combat Hostiles . | . . . Parts Fried . | . . . Impact Corruptions . | . . . Robots Melted . | . . . Combat Hostiles . | . . . Parts Melted . | . . . Heat Transferred . | . . . Parts Sabotaged . | . . . Parts Stolen . | . . . Parts Stripped . | . . . Power Chain Reactions . | . . . Alert | -11 -10 -10 ------- Run | Yrd Mat Min Maximum Alert Level . | . . . Low Security (%) 100 | 100 100 100 Level 1 . | . . . Level 2 . | . . . Level 3 . | . . . Level 4 . | . . . Level 5 . | . . . High Security . | . . . Max Security . | . . . Peak Influence 50 | . 50 3 Initial 3 | . . 3 Average 7 | . 16 . Influence Increases 50 | . 50 . Destroy 0b10 Robot/C 40 | . 40 . Destroy Leader 10 | . 10 . Influence Decreases 50 | . 40 10 Entered New Map 7 | . . 7 Time Decay 43 | . 40 3 Squads Dispatched . | . . . Investigation . | . . . Extermination . | . . . Reinforcement . | . . . Assault . | . . . Garrison . | . . . Intercept . | . . . Searches Triggered . | . . . Construction Impeded . | . . . Haulers Reinforced . | . . . Active Scanning Responses . | . . . Cargo Convoy Interrupts . | . . . Stealth | -11 -10 -10 --------- Run | Yrd Mat Min Distress Signals . | . . . Communications Jammed . | . . . Distress Signals . | . . . Times Spotted 11 | . 6 5 Peak Tracking Total 5 | . 4 5 Tactical Retreats 2 | . . 2 Traps | -11 -10 -10 ------- Run | Yrd Mat Min Traps Triggered . | . . . Indirectly . | . . . Trap Hack Attempts . | . . . Triggered . | . . . Disarmed . | . . . Reprogrammed . | . . . Reused . | . . . Traps Extracted . | . . . Installed . | . . . Triggered . | . . . Machines | -11 -10 -10 ---------- Run | Yrd Mat Min Machines Disabled . | . . . Max in Single Turn . | . . . Machines Repaired . | . . . Machines Dismantled . | . . . Machines Sabotaged . | . . . Overloaded Fab Kills . | . . . Hacking | -11 -10 -10 --------- Run | Yrd Mat Min Machines Accessed . | . . . Terminals . | . . . Fabricators . | . . . Repair Stations . | . . . Recycling Units . | . . . Scanalyzers . | . . . Garrison Access . | . . . Total Hacks . | . . . Successful . | . . . Failed . | . . . Catastrophic . | . . . Database Lockouts . | . . . Manual . | . . . Terminals . | . . . Fabricators . | . . . Repair Stations . | . . . Recycling Units . | . . . Scanalyzers . | . . . Garrison Access . | . . . Terminal Hacks . | . . . Fabricator Hacks . | . . . Repair Station Hacks . | . . . Recycling Unit Hacks . | . . . Scanalyzer . | . . . Garrison Access Hacks . | . . . Unauthorized Hacks . | . . . Terminals . | . . . Fabricators . | . . . Repair Stations . | . . . Recycling Units . | . . . Scanalyzers . | . . . Garrison Access . | . . . Data Cores Recovered . | . . . Used . | . . . Hacking Detections . | . . . Full Trace Events . | . . . Feedback Events . | . . . Feedback Blocked . | . . . Robot Schematics Acquired . | . . . Robots Built . | . . . Authchips . | . . . Time . | . . . Total Robot Build Rating . | . . . Part Schematics Acquired . | . . . Parts Built . | . . . Authchips . | . . . Time . | . . . Total Part Build Rating . | . . . Part Studies Acquired . | . . . Parts Repaired . | . . . Time . | . . . Parts Recycled . | . . . Recycled Matter . | . . . Retrieved Matter . | . . . Retrieved Components . | . . . Parts Scanalyzed . | . . . Part Schematics Acquired . | . . . Parts Damaged . | . . . Bothacking | -11 -10 -10 ------------ Run | Yrd Mat Min Used RIF Installer . | . . . Robots Hacked . | . . . Non-combat . | . . . Combat . | . . . Robot Hacks Applied . | . . . Relay Couplers Released . | . . . Fabnet Peak Effective % . | . . . Robots Rewired . | . . . Allies Hacked . | . . . Hacks Repelled . | . . . Allies | -11 -10 -10 -------- Run | Yrd Mat Min Total Allies . | . . . Largest Group . | . . . Highest-Rated Group . | . . . Highest-Rated Ally . | . . . Total Orders . | . . . Ally Attacks . | . . . Total Damage . | . . . Kills . | . . . Allies Corrupted . | . . . Allies Melted . | . . . Intel | -11 -10 -10 ------- Run | Yrd Mat Min Active Infowar (turns) 87 | . 40 47 Sensors 87 | . 40 47 Robot Analysis Total . | . . . Derelict Logs Recovered 1 | . . 1 Drone Launches . | . . . Drone Recoveries . | . . . Exploration | -11 -10 -10 ------------- Run | Yrd Mat Min Turns Passed 326 | 57 151 118 Spaces Moved 190 | 39 70 81 Core 50 | 17 . 33 Treads 140 | 22 70 48 Legs . | . . . Wheels . | . . . Hover . | . . . Flight . | . . . Fastest Speed 50 | 50 160 50 Average Speed 133 | 124 160 115 Slowest Speed 160 | 160 160 160 Overloaded Moves . | . . . Propulsion Burnouts . | . . . Robots Hopped . | . . . Potential Cave-ins . | . . . Cave-ins Triggered . | . . . Exploration Rate (%) 13 | 3 17 21 Regions Visited 2 Branch Regions 1 Pre-discovered Areas . | . . . Known Exits Taken . | . . . Unknown Exits Taken 2 | 1 1 . Scrap Searched . | . . . Spaces Dug . | . . . Terrain Destroyed . | . . . Melee . | . . . Projectile . | . . . AOE . | . . . Terrain Rammed . | . . . Walls Destroyed . | . . . Machines Disabled . | . . . Actions | -11 -10 -10 --------- Run | Yrd Mat Min Total 237 | 48 92 97 Wait . | . . . Move 188 | 38 69 81 Hop . | . . . Pick Up 9 | 5 1 3 Fast Attach . | . . . Attach 6 | 4 1 1 Detach . | . . . Swap . | . . . Drop 1 | 1 . . Fire 33 | . 21 12 Melee . | . . . Ram . | . . . Kick . | . . . Crush . | . . . Escape Stasis . | . . . Rewire . | . . . Trap . | . . . Miscellaneous . | . . . Route ------- -11/Scrapyard -10/Materials -10/Mines History --------- Turn | Location | Event 14 | -11/Scrapyard | Discovered new exit (range 16) 58 | -11/Scrapyard | Entered Materials 165 | -10/Materials | Discovered new exit (range 8) 209 | -10/Materials | Entered Mines 210 | -10/Mines | Assembled infested the area 257 | -10/Mines | Core integrity fell below 50% 272 | -10/Mines | Core integrity fell below 20% 304 | -10/Mines | Build established: Mutant 306 | -10/Mines | Learned 4 Materials zone layouts 327 | -10/Mines | Lost 3 parts (2n1u) 327 | -10/Mines | Destroyed by as-22343 with Assembled Rifle Last Messages --------------- GOAL=ESCAPE Something is scanning the area. 00210_ ALERT: Infestation in the mines, dispatching Demolisher response squad. 00210_ K-01 Serf collects debris. 00215_ K-01 Serf cleans the Laser Drill. 00256_ Sensor Array destroyed. 00256_ System corrupted by crushing effect (+1). 00282_ Lgt. Treads destroyed. 00296_ System corrupted by crushing effect (+5). 00296_ Knocked back. 00297_ as-92587 destroyed. 00299_ Acquired 3 matter. 00303_ System corrupted: Heat flow error (+201). 00306_ Acquired derelict log, extracted data. Data stored: Materials zone layouts (x4). 00308_ Acquired Signal Interpreter. 00313_ Acquired Datajack. 00315_ Acquired Heat Sink. 00326_ System corrupted: Energy discharge (-36). Map ----- +----------------------------------------------------+ | ???????????????? ### # # #??????????? | | ?????????????????? ??????# ######## #??????????? | | ?????????????????????????? ???????# #??????????? | | ?????????????????????????? ??????## #########??? | | ?????????????????????????? ????### #??? | | ?????????????????????????? ????# #??? | | ?????????????????????????# ##### #??? | | ?????????????????????????# #### #???# #??? | | ?????????????????????????? #?## ##???# ##?? | | ??????????????????????????# #########???## #?? | | ??????????????????????????# ######?## #?? | | ???????????????????????#### #?# ## ### #?? | | ??????????????????????## ### ## ## ##?? | | ?????????????????????## % ## ####??? | | ????????????????????## ### ## ##?????? | | ???????????????????## #####?# ## ##??????? | | ??????????????????## ##?????# ##???????? | | ?????????????????## ##??????## ## ##????????? | | ?????????????????#$ #????????# #####?????????? | | ?????????????????# #????????# #?????????????? | | ?????????????????## #???????? #?????????????? | | ??????????????????## #????????###?????????????? | | ???????????????????# #????????????????????????? | | ???????????????##### ##???????????????????????? | | ??????????????## ###### #????????????????? | | ??????????????# @ a #????????????????? | | ??????????????# r #######????????????????? | | ??????????????# ! ##??????????????????????? | | ??????????????## ##???????????????????????? | | ???????????????## #????????????????????????? | | ????????????????## ##????????????????????????? | | ?????????????????#####?????????????????????????? | | ???????????????????????????????????????????????? | | ???????????????????????????????????????????????? | | | | | | | | | | | | | | | | | | | | | | | | | | | | | | | | | +----------------------------------------------------+ Best States ------------- Heat Dissipation 25 Energy Generation 10 Energy Capacity 125 Matter Stores 300 Matter Capacity 300 Sight Range 16 Robot Scan Range 14 Terrain Scan Density 10 Evasion (%) 50 Recoil Reduction 2 Item Schematics ----------------- None Robot Schematics ------------------ None Fabricated ------------ Nothing Repaired ---------- Nothing Studied --------- None Alien Tech Used ----------------- None Achievements -------------- None Challenges ------------ None Game ------ Seed TachyonCloakConstruct Manual? 0 Play Time 00:05:43 Cumulative 10.1 hours Start 2026.08.09 @ 22:03:09 End 2026.08.09 @ 22:07:00 Sessions 1 Manual Loads 0 Difficulty Rogue Special Mode None Game No. 28 Rogue 21 Adventurer 7 Explorer 0 Win Type - Total 0 Types 0/0/0/0/0/0/0/0/0/0 Lore% 9 Gallery% 14 Achievement% 11 Wizard Run 0 Options --------- Layout 1 ASCII 0 Keyboard 0 Movement Mouse Keybinds 0 Fullscreen 1 Font 24/Smallcaps Map View 50x35 Zoom Use 0% Tactical HUD 1 Map Filters NONE Filters NONE Steam 1 RUN: ec821164-09c9-48a1-a77a-437acfcbfa25